[Event "ETCC Open 2023"]
[Site "Budva"]
[Date "2023.11.12"]
[Round "2.13"]
[White "Navara, David"]
[Black "Vitiugov, Nikita"]
[Result "0-1"]
[ECO "B72"]
[WhiteElo "2695"]
[BlackElo "2712"]
[Annotator "TA"]
[PlyCount "116"]
[EventDate "2023.11.10"]
[EventType "team-tourn"]
[EventCountry "MNE"]
[SourceTitle "playchess.com"]
[Source "ChessBase"]
[SourceQuality "1"]
[WhiteTeam "Czech Republic"]
[BlackTeam "England"]
[WhiteTeamCountry "CZE"]
[BlackTeamCountry "ENG"]
[TimeControl "40/5400+30:1800+30"]

{[%evp 14,116,17,20,29,21,31,31,41,47,35,0,6,-9,-24,-22,0,-29,-10,-41,-23,-24,-18,-44,-11,-16,0,-10,0,0,0,0,92,90,92,0,0,0,0,0,171,0,0,0,0,-28,-8,-232,-227,-221,-206,-213,-202,-220,-219,-222,-194,-178,-86,-91,-73,-75,-29,-83,-82,-81,-79,-175,-140,-101,-105,-302,-298,-198,-146,-292,-285,-2068,-2229,-2003,-1837,-1379,-1153,-955,-697,-1258,-809,-404,-341,-12833,-12833,-12837,-12837,-12841,-12842,-12844,-12844,-12845,-12845,-12845,-12846,-12849,-12849,-12850,-12850]} 1. e4 {[%emt 0:00:01]} c5 {[%emt 0:00:21]} 2. Nf3 {[%emt 0:00:06]} d6 {[%emt 0:00:06]} 3. d4 {[%emt 0:00:08]} cxd4 {[%emt 0:00:05]} 4. Nxd4 {[%emt 0:00:05]} Nf6 {[%emt 0:00:04]} 5. Nc3 {[%emt 0:00:09]} a6 {[%emt 0:00:05]} 6. Bd3 {[%emt 0:00:19]} g6 {[%emt 0:00:27]} 7. f3 {[%emt 0:00:19] seems to push 7.0-0 aside.} Bg7 {[%emt 0:00:30]} 8. Be3 {[%emt 0:00:14]} Nbd7 {[%emt 0:00:31] B72: Sicilian Dragon: 6 Be3, lines with h3+Bc4 and sidelines.} 9. Qd2 {[%emt 0:00:58]} b5 {[%emt 0:00:26]} 10. a4 {[%emt 0:05:42]} b4 {[%emt 0:00:11] White is slightly better.} 11. Na2 {[%emt 0:08:38]} d5 {[%emt 0:00:32] [#]} 12. Nxb4 $146 {[%emt 0:01:44]} ({Predecessor:} 12. exd5 Nxd5 13. Nxb4 Nxe3 14. Qxe3 Nc5 15. c3 Nxd3+ 16. Nxd3 Qc7 17. O-O O-O 18. f4 Bxd4 19. cxd4 {½-½ Van Leeuwen,E (2486)-Mauritsson,S (2508) SWE-RoW email 2018 [7]}) 12... dxe4 {[%emt 0:00:39]} 13. fxe4 {[%emt 0:01:40]} (13. Ndc6 Qc7 14. fxe4 (14. Bxe4 $2 Nxe4 15. fxe4 a5 $19) 14... Bb7 $17) 13... Bb7 {[%emt 0:06:03]} 14. O-O {[%emt 0:04:56]} Ne5 {[%emt 0:14:03]} 15. Rad1 {[%emt 0:07:39]} O-O {[%emt 0:07:11]} 16. Kh1 {[%emt 0:08:27]} (16. Nf3 $5 {[%cal Rf3e5]} Nxe4 17. Bxe4 Bxe4 18. Bd4 Bxf3 19. gxf3 $15) 16... Nxe4 {[%emt 0:18:55]} 17. Bxe4 {[%emt 0:00:46]} Bxe4 {[%emt 0:00:08]} 18. Bh6 {[%emt 0:06:39]} (18. Qe2 {simplifies} Qc7 19. Bf4 Qb7 20. Bxe5 Bxe5 21. c3) 18... Nc4 {[%emt 0:12:13]} (18... Bxh6 $5 19. Qxh6 Qc8 $15) 19. Qe2 {[%emt 0:07:28][%csl LRc4,LRe4]} Bxh6 {[%emt 0:01:29] This pair of bishops is nice.} (19... Nxb2 20. Bxg7 Nxd1 21. Ndc6 (21. Qxe4 Kxg7 22. Rxd1 Qd6 $16) 21... Bxc6 22. Nxc6 $16) 20. Ndc6 {[%emt 0:01:42]} Qe8 {[%emt 0:11:05]} 21. Qxe4 {[%emt 0:03:26]} (21. Qxc4 {simplifies} Bxc6 22. Qxc6 Rb8 23. Qc5) 21... Ne3 {[%emt 0:07:15]} 22. Nd5 {[%emt 0:14:40]} Nxd1 {[%emt 0:04:57]} (22... Nxf1 $11 {keeps the balance.} 23. Rxf1 (23. Ncxe7+ Kh8 $11) 23... f5 24. Ncxe7+ Kh8) 23. Rxd1 $16 {[%emt 0:02:15]} (23. Ndxe7+ Kh8 24. Rxd1 Bg7 $15) 23... f5 {[%emt 0:02:18]} 24. Ndxe7+ {[%emt 0:12:52]} (24. Qc4 $1 $16 {And now Nf6+ would win.} Qf7 25. Qh4 (25. Ndxe7+ Kh8 $17)) 24... Kh8 $1 $11 {[%emt 0:00:07]} 25. Qh4 {[%emt 0:00:09]} Bg7 {[%emt 0:01:47]} 26. Rd6 {[%emt 0:00:23] Inhibits Bf6.} h6 $2 {[%emt 0:05:56] Black is weak on the light squares} (26... g5 $1 $11 {and Black stays safe.} 27. Qxg5 Rf7) 27. Rxg6 $2 {[%emt 0:06:52]} (27. Nxg6+ $18 Kh7 28. Nce5 (28. Nxf8+ Bxf8 29. Rf6 Bg7 $11)) 27... Kh7 $1 $40 {[%emt 0:00:19][%mdl 128] Black has some attack.} 28. h3 {[%emt 0:03:20]} Rf7 $1 {[%emt 0:00:51] Some like it hot} 29. Rd6 {[%emt 0:01:54] Prevents Qd7} (29. Re6 $5 {[%cal Rc6e5]}) 29... Qf8 {[%emt 0:02:09] Threatening ...Re8.} 30. Qg3 $2 {[%emt 0:00:58]} (30. Re6 $11 {and White is okay.}) 30... Rxe7 $19 {[%emt 0:00:56]} 31. Qg6+ {[%emt 0:00:34]} Kh8 {[%emt 0:00:12]} 32. Nxe7 {[%emt 0:00:05]} Qxe7 {[%emt 0:00:03]} 33. Re6 {[%emt 0:00:09] Prevents Qe1+.} Qg5 {[%emt 0:03:22]} 34. Qxg5 {[%emt 0:01:05]} hxg5 {[%emt 0:00:01][%mdl 4096] Endgame KRB-KR} 35. Rg6 {[%emt 0:00:38]} Rc8 {[%emt 0:01:54]} (35... Bxb2 $19 {and Black stays clearly on top. ...f4 is the strong threat.} 36. Rxg5 f4) 36. Rxg5 $17 {[%emt 0:00:51]} Bxb2 {[%emt 0:00:37]} 37. Rxf5 {[%emt 0:00:21]} Rxc2 {[%emt 0:00:10]} ({Black should play} 37... Bc3 $17) 38. Ra5 {[%emt 0:00:39]} (38. g4 $11 {remains equal.}) 38... Rc6 {[%emt 0:00:22]} 39. g4 {[%emt 0:00:04]} Bc3 {[%emt 0:00:31]} 40. Rd5 {[%emt 0:00:47]} (40. Rh5+ $17 Kg7 41. Rg5+ Kf7 42. Rf5+ Ke7 43. a5) 40... Rc4 {[%emt 0:00:32]} 41. a5 {[%emt 0:12:36] [#]} Ra4 $1 {[%emt 0:01:10]} 42. Rd8+ $2 {[%emt 0:01:30]} (42. h4 $17 {is a better defense.}) 42... Kg7 $19 {[%emt 0:00:17]} 43. Rd7+ {[%emt 0:00:05]} Kf8 {[%emt 0:01:56]} (43... Kf6 $19 44. Rd6+ Ke5 45. Rxa6 Kf4) 44. Ra7 {[%emt 0:05:53]} (44. h4 $17) 44... Rxa5 {[%emt 0:00:11] aiming for ...Ra2.} ({Stronger than} 44... Bxa5 45. Rxa6 Kg7 46. h4 $11) 45. h4 $2 {[%emt 0:03:40] [#]} (45. Ra8+ Kf7 46. Kg2) 45... Ra4 $1 {[%emt 0:16:21][%cal Oa6a5] White must now prevent ...a5!} 46. Kh2 {[%emt 0:01:55]} a5 $1 {[%emt 0:03:58]} ({And not} 46... Rxg4 47. Rxa6 Be5+ 48. Kh1 $15) 47. Kh3 {[%emt 0:00:11]} Ra3 {[%emt 0:01:16]} 48. Ra8+ {[%emt 0:03:10]} Kf7 {[%emt 0:00:05]} 49. Kg2 {[%emt 0:02:56]} Kf6 {[%emt 0:03:31]} 50. Rf8+ {[%emt 0:01:27]} Ke5 {[%emt 0:02:09] Strongly threatening ...Ke4.} 51. g5 $2 {[%emt 0:00:20]} (51. h5 Bd2 52. Rg8) 51... Ke4 {[%emt 0:00:32] Black is clearly winning.} 52. g6 {[%emt 0:01:06]} Be5 {[%emt 0:00:25]} 53. h5 {[%emt 0:00:22]} Rg3+ {[%emt 0:01:27]} 54. Kf1 {[%emt 0:02:00]} Bd4 {[%emt 0:02:06]} ({Not} 54... a4 55. Ra8 $15) 55. Ke2 {[%emt 0:00:33]} Rg2+ {[%emt 0:00:18]} 56. Kf1 {[%emt 0:00:11]} Rg5 {[%emt 0:00:11]} 57. h6 {[%emt 0:00:50]} Rxg6 {[%emt 0:00:13]} 58. h7 {[%emt 0:00:22]} Rf6+ {[%emt 0:00:15] Weighted Error Value: White=0.68/Black=0.24 (precise)} 0-1

[Event "ETCC Open 2023"]
[Site "Budva"]
[Date "2023.11.12"]
[Round "2.14"]
[White "Adams, Michael"]
[Black "Nguyen, Thai Dai Van"]
[Result "1/2-1/2"]
[ECO "C67"]
[WhiteElo "2670"]
[BlackElo "2624"]
[Annotator "TA"]
[PlyCount "62"]
[EventDate "2023.11.10"]
[EventType "team-tourn"]
[EventCountry "MNE"]
[SourceTitle "playchess.com"]
[Source "ChessBase"]
[SourceQuality "1"]
[WhiteTeam "England"]
[BlackTeam "Czech Republic"]
[WhiteTeamCountry "ENG"]
[BlackTeamCountry "CZE"]
[TimeControl "40/5400+30:1800+30"]

{[%evp 16,62,18,13,20,12,17,12,19,16,18,10,15,15,11,13,14,21,25,0,16,26,25,11,16,13,28,12,25,0,0,0,0,-8,0,0,0,0,0,0,0,-10,0,0,11,14,12,21,18]} 1. e4 {[%emt 0:00:04]} e5 {[%emt 0:00:19]} 2. Nf3 {[%emt 0:00:06]} Nc6 {[%emt 0:00:06]} 3. Bb5 {[%emt 0:00:11]} Nf6 {[%emt 0:00:43]} 4. O-O {[%emt 0:00:11][%cal Bh1f1,Bf1e1,Be1e5][%mdl 32]} Nxe4 {[%emt 0:00:08]} 5. Re1 {[%emt 0:00:05]} Nd6 {[%emt 0:00:06]} 6. Nxe5 {[%emt 0:00:08]} Be7 {[%emt 0:00:08]} 7. Bf1 {[%emt 0:00:22]} Nxe5 {[%emt 0:00:06]} 8. Rxe5 {[%emt 0:00:05]} O-O {[%emt 0:00:09]} 9. d4 {[%emt 0:00:12]} Bf6 {[%emt 0:00:23] C67: Ruy Lopez: Berlin Defence: 4 0-0 Nxe4.} 10. Re2 {[%emt 0:00:35]} b6 {[%emt 0:01:01]} 11. Re1 {[%emt 0:00:49]} Bb7 {[%emt 0:00:08]} 12. Bf4 {[%emt 0:00:55]} Ne4 {[%emt 0:06:14]} 13. Nd2 {[%emt 0:05:16]} Re8 {[%emt 0:09:46]} 14. Bd3 {[%emt 0:02:55][%cal Rd2e4]} Nxd2 {[%emt 0:06:43]} 15. Qxd2 {[%emt 0:00:34]} d6 {[%emt 0:21:47]} 16. Bb5 {[%emt 0:01:05]} c6 {[%emt 0:10:34] [#]} 17. Rxe8+ $146 {[%emt 0:12:34]} ({Predecessor:} 17. Bf1 Qd7 18. a4 a5 19. c3 d5 20. Be5 Bxe5 21. dxe5 Ba6 22. Bxa6 Rxa6 23. Re3 {½-½ Vachier Lagrave,M (2741)-Giri,A (2768) Chessable Masters Div 2 Lose rapid 2023 (6.1)}) 17... Qxe8 {[%emt 0:00:02]} 18. Re1 {[%emt 0:00:31][%cal Ba1e1,Be1e3,Be3g3][%mdl 32]} Qd7 {[%emt 0:01:01]} 19. Bf1 {[%emt 0:01:00]} h6 {[%emt 0:14:21]} 20. h3 {[%emt 0:06:30]} Rd8 {[%emt 0:06:35]} 21. Re3 {[%emt 0:10:47]} c5 {[%emt 0:01:27]} 22. Rg3 {[%emt 0:02:35]} Bxd4 {[%emt 0:01:51] The position is equal.} ({But not} 22... cxd4 23. Bxh6 Qe7 24. Bg5 $14) 23. c3 {[%emt 0:02:35]} Bf6 {[%emt 0:02:33]} 24. Bxh6 {[%emt 0:00:11]} Be4 {[%emt 0:01:24]} 25. Bg5 {[%emt 0:18:02]} Qf5 {[%emt 0:00:50]} 26. Bd3 $36 {[%emt 0:04:00][%mdl 2048] White has good play.} d5 {[%emt 0:02:34]} 27. Bxf6 {[%emt 0:01:13]} Qxf6 {[%emt 0:00:02]} 28. Re3 {[%emt 0:00:56]} Qg5 {[%emt 0:04:12][%csl Ge4][%cal Rg5g2] [#]} 29. f3 {[%emt 0:06:54]} d4 {[%emt 0:00:05]} 30. cxd4 {[%emt 0:00:05]} cxd4 {[%emt 0:00:12]} 31. Re2 {[%emt 0:00:11]} Qxd2 {[%emt 0:00:10] A balanced but interesting game.   Weighted Error Value: White=0.04 (flawless) /Black=0.02 (flawless)} 1/2-1/2

[Event "ETCC Open 2023"]
[Site "Budva"]
[Date "2023.11.12"]
[Round "2.15"]
[White "Zilka, Stepan"]
[Black "McShane, Luke J"]
[Result "1-0"]
[ECO "C79"]
[WhiteElo "2609"]
[BlackElo "2626"]
[Annotator "TA"]
[PlyCount "103"]
[EventDate "2023.11.10"]
[EventType "team-tourn"]
[EventCountry "MNE"]
[SourceTitle "playchess.com"]
[Source "ChessBase"]
[SourceQuality "1"]
[WhiteTeam "Czech Republic"]
[BlackTeam "England"]
[WhiteTeamCountry "CZE"]
[BlackTeamCountry "ENG"]
[TimeControl "40/5400+30:1800+30"]

{[%evp 15,103,38,29,36,36,30,30,37,43,37,30,0,0,0,0,-14,-14,-26,-31,-16,-27,-147,-134,-142,-87,-69,0,0,0,0,0,0,6,6,6,6,6,6,6,0,20,0,20,12,27,23,25,13,60,41,43,34,37,39,127,114,147,99,154,154,154,154,154,154,256,200,251,251,281,234,415,397,474,395,754,741,1085,1055,1068,1056,1677,1666,29985,29986,29986,29987,29992,29992,29992,29993]} 1. e4 {[%emt 0:00:05]} e5 {[%emt 0:00:36]} 2. Nf3 {[%emt 0:00:05]} Nc6 {[%emt 0:00:06]} 3. Bb5 {[%emt 0:00:12]} a6 {[%emt 0:00:06]} 4. Ba4 {[%emt 0:00:04]} Nf6 {[%emt 0:00:07]} 5. O-O {[%emt 0:00:08]} d6 {[%emt 0:00:11]} 6. Re1 {[%emt 0:00:08]} Bd7 {[%emt 0:00:33]} 7. c3 {[%emt 0:01:28]} g6 {[%emt 0:00:12]} 8. d4 {[%emt 0:01:50]} Bg7 {[%emt 0:00:11]} 9. d5 {[%emt 0:01:01] 9.h3 is the modern continuation. C79: Ruy Lopez: Steinitz-type lines with 3...a6 4 Ba4 Nf6 5 0-0 d6.} Ne7 {[%emt 0:00:07]} 10. Bxd7+ {[%emt 0:01:11]} Nxd7 {[%emt 0:00:10]} 11. c4 {[%emt 0:00:23] White has an edge.} h6 {[%emt 0:02:27]} 12. Nc3 {[%emt 0:00:19]} f5 {[%emt 0:00:11]} 13. exf5 {[%emt 0:02:30]} gxf5 {[%emt 0:01:19][%cal Bg6f5,Bf5f4][%mdl 32] [#]} 14. Nh4 $146 {[%emt 0:02:08][%cal Oh4f5]} ({Predecessor:} 14. Rb1 a5 15. a3 O-O 16. b4 axb4 17. axb4 Ng6 18. Be3 Nf6 19. c5 Ng4 20. c6 bxc6 21. dxc6 {0-1 Ayush,S (2371)-Bharath,S (2496) Yerevan op-A 5th 2023 (4)}) 14... O-O {[%emt 0:01:33]} 15. Re3 {[%emt 0:02:53]} Qe8 {[%emt 0:03:06]} 16. Rg3 {[%emt 0:03:22]} f4 {[%emt 0:17:26]} 17. Rh3 {[%emt 0:02:49]} (17. Rg4 $2 Nf6 18. h3 b5 $19) 17... Nf6 {[%emt 0:00:14]} 18. g3 {[%emt 0:20:35]} (18. a4 $11 {remains equal.}) 18... Qd7 $17 {[%emt 0:05:30]} 19. Kg2 {[%emt 0:04:13]} Ng4 {[%emt 0:08:22]} (19... b5 $142 {Strongly threatening ...b4.} 20. gxf4 exf4 21. Bxf4 Ne4 22. Nxe4 Rxf4) 20. Ne4 {[%emt 0:01:08] [#]} Nf5 {[%emt 0:07:04]} 21. Nxf5 {[%emt 0:03:13]} (21. Qxg4 $2 Ne3+ 22. Bxe3 Qxg4 $19) (21. Ng6 f3+ 22. Kg1 (22. Kxf3 $2 Nfe3+ 23. Ke2 Nxd1 $19) 22... Rf7 $17) 21... Qxf5 {[%emt 0:03:22]} 22. f3 {[%emt 0:01:35]} Nf6 {[%emt 0:01:42]} 23. Qd3 {[%emt 0:03:02]} b5 $132 {[%emt 0:16:39][%mdl 2048] Black is fighting back} 24. g4 {[%emt 0:32:13]} Qd7 {[%emt 0:15:56]} 25. Bd2 {[%emt 0:04:51]} Nxe4 {[%emt 0:05:17]} 26. Qxe4 {[%emt 0:00:08]} bxc4 {[%emt 0:00:03]} 27. Bc3 {[%emt 0:00:59]} Rac8 {[%emt 0:08:05]} 28. Rd1 {[%emt 0:03:36][%mdl 1024] White has compensation.} Qa4 {[%emt 0:00:55]} 29. Rg1 {[%emt 0:00:12][%cal Og4g5] And now g5! would win.} Qd7 {[%emt 0:01:28]} (29... Qxa2 30. g5 h5 31. Rxh5 $18 (31. Qg6 Rce8 $18)) 30. Rh5 {[%emt 0:01:23]} c6 {[%emt 0:00:44]} 31. Rd1 {[%emt 0:00:16]} ({Reject} 31. Qxc4 Qf7 $15) 31... c5 {[%emt 0:00:56]} (31... Qb7 $11 {deserves consideration.}) 32. Kh1 {[%emt 0:00:39]} Rf6 {[%emt 0:00:26]} 33. Rg1 {[%emt 0:00:32] g5 would be deadly.} Qf7 {[%emt 0:00:47]} 34. Qxc4 {[%emt 0:01:37]} Qg6 {[%emt 0:00:50]} (34... Ra8 $14) 35. Qxa6 $16 {[%emt 0:00:32]} Rcf8 {[%emt 0:00:44]} 36. Re1 {[%emt 0:01:58]} ({White should play} 36. a4) 36... R6f7 {[%emt 0:00:34]} (36... Qc2 $142) 37. Re4 {[%emt 0:00:31][%cal Rc3e5]} Kh7 {[%emt 0:00:19] Black is weak on the light squares} 38. a4 {[%emt 0:01:03][%cal Ba2a4,Ba4a5,Ba5a6][%mdl 32] White is more active.} Rd7 {[%emt 0:00:39]} 39. a5 {[%emt 0:00:33]} Bf6 {[%emt 0:00:27]} (39... Rff7 $16 40. Qc6 Rc7) 40. Qc6 {[%emt 0:02:45]} Rff7 {[%emt 0:00:30]} 41. a6 {[%emt 0:03:10]} Bg5 {[%emt 0:05:59]} 42. Be1 {[%emt 0:02:45]} Bd8 {[%emt 0:06:20] [#]} (42... Rc7 43. Qa4 Rf8) 43. Rf5 $1 $18 {[%emt 0:01:55][%mdl 512]} Rfe7 {[%emt 0:05:25]} (43... Rc7 44. Rxf7+) 44. h4 {[%emt 0:02:21][%cal Bh2h4,Bh4h5][%mdl 32] Threatens to win with h5.} Qg7 $2 {[%emt 0:08:46]} (44... Rc7 45. a7 Rxa7) 45. h5 {[%emt 0:03:13]} Rf7 {[%emt 0:03:22]} 46. Rxf7 {[%emt 0:00:15]} Qxf7 {[%emt 0:00:03]} 47. b4 {[%emt 0:03:21]} Rc7 {[%emt 0:03:19]} 48. Qxd6 {[%emt 0:00:34]} c4 {[%emt 0:00:21]} 49. Qxd8 {[%emt 0:03:08] White mates.} c3 {[%emt 0:00:04]} 50. d6 {[%emt 0:03:15]} Rc4 {[%emt 0:01:24]} 51. Rxc4 {[%emt 0:00:36]} Qxc4 {[%emt 0:00:03]} 52. Qc7+ {[%emt 0:00:06] White used his chance.   Weighted Error Value: White=0.12 (very precise) /Black=0.42} 1-0

[Event "ETCC Open 2023"]
[Site "Budva"]
[Date "2023.11.12"]
[Round "2.16"]
[White "Haria, Ravi"]
[Black "Vykouk, Jan"]
[Result "1/2-1/2"]
[ECO "B30"]
[WhiteElo "2508"]
[BlackElo "2488"]
[Annotator "ChessBase"]
[PlyCount "120"]
[EventDate "2023.11.10"]
[EventType "team-tourn"]
[EventCountry "MNE"]
[SourceTitle "playchess.com"]
[Source "ChessBase"]
[SourceQuality "1"]
[WhiteTeam "England"]
[BlackTeam "Czech Republic"]
[WhiteTeamCountry "ENG"]
[BlackTeamCountry "CZE"]
[TimeControl "40/5400+30:1800+30"]

1. e4 {[%emt 0:00:58]} c5 {[%emt 0:00:11]} 2. Nf3 {[%emt 0:00:13]} Nc6 {[%emt 0:00:10]} 3. Bb5 {[%emt 0:00:44]} e6 {[%emt 0:00:28]} 4. O-O {[%emt 0:00:45]} Nge7 {[%emt 0:00:32]} 5. d4 {[%emt 0:00:35]} cxd4 {[%emt 0:01:20]} 6. Nxd4 {[%emt 0:00:07]} Nxd4 {[%emt 0:07:44]} 7. Qxd4 {[%emt 0:00:14]} Nc6 {[%emt 0:00:14]} 8. Qc3 {[%emt 0:05:53]} Qc7 {[%emt 0:03:58]} 9. a4 {[%emt 0:13:09]} a6 {[%emt 0:05:02]} 10. Be2 {[%emt 0:01:47]} Bd6 {[%emt 0:11:43]} 11. Qxg7 {[%emt 0:22:38]} Bxh2+ {[%emt 0:00:11]} 12. Kh1 {[%emt 0:00:01]} Be5 {[%emt 0:00:24]} 13. Qh6 {[%emt 0:01:03]} Rg8 {[%emt 0:25:19]} 14. Na3 {[%emt 0:13:43]} d5 {[%emt 0:07:32]} 15. c3 {[%emt 0:10:01]} Bd7 {[%emt 0:02:19]} 16. Bg5 {[%emt 0:05:47]} Rg6 {[%emt 0:01:34]} 17. Qh4 {[%emt 0:01:17]} h6 {[%emt 0:00:36]} 18. Be3 {[%emt 0:01:01]} Bf6 {[%emt 0:02:59]} 19. Qh5 {[%emt 0:00:37]} Ne7 {[%emt 0:03:19]} 20. Bf3 {[%emt 0:06:20]} Bc6 {[%emt 0:00:52]} 21. exd5 {[%emt 0:02:38]} Bxd5 {[%emt 0:02:32]} 22. Nc2 {[%emt 0:02:51]} O-O-O {[%emt 0:02:20]} 23. Nb4 {[%emt 0:03:20]} Bxf3 {[%emt 0:06:04]} 24. Qxf3 {[%emt 0:00:07]} Qc4 {[%emt 0:01:22]} 25. Qf4 {[%emt 0:02:23]} Qxf4 {[%emt 0:08:30]} 26. Bxf4 {[%emt 0:00:01]} Nf5 {[%emt 0:01:12]} 27. Rfe1 {[%emt 0:01:09]} Rg4 {[%emt 0:02:38]} 28. g3 {[%emt 0:01:04]} h5 {[%emt 0:00:17]} 29. Nc2 {[%emt 0:01:10]} h4 {[%emt 0:00:52]} 30. Ne3 {[%emt 0:01:00]} Nxe3 {[%emt 0:00:13]} 31. Rxe3 {[%emt 0:00:08]} hxg3 {[%emt 0:00:48]} 32. fxg3 {[%emt 0:01:24]} e5 {[%emt 0:02:37]} 33. Bxe5 {[%emt 0:00:21]} Bxe5 {[%emt 0:00:05]} 34. Rxe5 {[%emt 0:00:03]} Rxg3 {[%emt 0:00:08]} 35. Rc5+ {[%emt 0:00:51]} Kb8 {[%emt 0:00:05]} 36. Rh5 {[%emt 0:00:11]} Rd2 {[%emt 0:00:33]} 37. Rh2 {[%emt 0:01:38]} Rgd3 {[%emt 0:00:08]} 38. Rf1 {[%emt 0:01:03]} Rxh2+ {[%emt 0:00:12]} 39. Kxh2 {[%emt 0:00:01]} Rd2+ {[%emt 0:00:08]} 40. Kg3 {[%emt 0:00:38]} Rxb2 {[%emt 0:00:08]} 41. Rxf7 {[%emt 0:30:51]} Rb3 {[%emt 0:30:17]} 42. Rf3 {[%emt 0:00:00]} Kc7 {[%emt 0:00:00]} 43. Kf2 {[%emt 0:00:00]} Kb6 {[%emt 0:00:00]} 44. Ke2 {[%emt 0:00:00]} Ka5 {[%emt 0:00:00]} 45. Kd2 {[%emt 0:00:00]} Kxa4 {[%emt 0:00:00]} 46. Kc2 {[%emt 0:00:00]} Ka3 {[%emt 0:00:00]} 47. Rf7 {[%emt 0:00:00]} b6 {[%emt 0:00:00]} 48. Rf6 {[%emt 0:00:00]} Rb2+ {[%emt 0:00:00]} 49. Kc1 {[%emt 0:00:00]} a5 {[%emt 0:00:00]} 50. Rg6 {[%emt 0:00:00]} b5 {[%emt 0:00:00]} 51. Rg5 {[%emt 0:00:00]} a4 {[%emt 0:00:00]} 52. Rf5 {[%emt 0:00:00]} Ka2 {[%emt 0:00:00]} 53. Rh5 {[%emt 0:00:00]} a3 {[%emt 0:00:00]} 54. Rg5 {[%emt 0:00:00]} b4 {[%emt 0:04:04]} 55. cxb4 {[%emt 0:00:00]} Rxb4 {[%emt 0:00:16]} 56. Rc5 {[%emt 0:00:20]} Rh4 {[%emt 0:00:39]} 57. Rc8 {[%emt 0:01:00]} Rh1+ {[%emt 0:01:07]} 58. Kc2 {[%emt 0:00:06]} Rh2+ {[%emt 0:00:13]} 59. Kc1 {[%emt 0:00:11]} Rh1+ {[%emt 0:00:20]} 60. Kc2 {[%emt 0:00:06]} Rh2+ {[%emt 0:00:38]} 1/2-1/2